bitfinex/quotes_SOLUSD_20240813
["timestamp","ask_amount","ask_price","bid_price","bid_amount"]
[1723526685653,6.8583,145.81,145.77,0.12549]
[1723526685858,6.8588,145.8,145.76,15.0733]
[1723526686260,6.8583,145.81,145.76,15.0733]
[1723526687156,6.8583,145.81,145.77,1.37187217]
[1723526687573,6.8583,145.81,145.76,15.0733]
[1723526687878,31.69,145.82,145.76,15.0733]
[1723526687879,6.8587,145.8,145.76,15.0733]
[1723526688051,6.8597,145.78,145.73,15.1443]
[1723526688689,20.04225953,145.88,145.77,21.3468]
[1723526688897,31.69,145.9,145.78,20.0]
[1723526689188,6.8554,145.87,145.78,20.0]
[1723526689381,6.8554,145.87,145.79,0.25098]
[1723526689588,6.8554,145.87,145.8,0.37647]
[1723526689886,6.8554,145.87,145.81,0.25098]
[1723526690756,6.8559,145.86,145.78,20.0]
[1723526690971,6.8559,145.86,145.79,0.25098]
[1723526692170,6.8563,145.85,145.79,0.25098]
[1723526692778,6.8563,145.85,145.78,0.12549]
[1723526693074,6.8583,145.81,145.77,21.3468]
[1723526693287,6.8578,145.82,145.77,21.3468]
[1723526694057,38.547,145.84,145.77,21.3468]
[1723526694768,6.8573,145.83,145.77,21.3468]
[1723526695171,6.8577,145.82,145.77,21.3468]
[1723526700898,31.69,145.84,145.77,21.3468]
[1723526701094,31.69,145.82,145.73,21.6879]
[1723526701387,38.5477,145.82,145.73,21.6879]
[1723526701582,6.8573,145.83,145.73,21.6879]
[1723526701773,20.0,145.82,145.73,21.6879]
[1723526702178,6.8573,145.83,145.74,1.37190532]
[1723526702393,6.8573,145.83,145.75,0.50196]
[1723526702586,6.8573,145.83,145.75,1.87386626]
[1723526703094,6.8579,145.82,145.75,0.50196]
[1723526703484,31.69,145.84,145.75,1.87386849]
[1723526703671,31.69,145.86,145.78,15.7128]
[1723526703876,20.0,145.85,145.79,0.50196]
[1723526704382,26.8566,145.85,145.78,15.7128]
[1723526705690,6.8573,145.83,145.78,15.7128]
[1723526705906,31.67,145.83,145.76,6.1636]
[1723526706203,6.8585,145.81,145.76,6.1636]
[1723526706400,51.67,145.85,145.76,6.1636]
[1723526706895,6.8571,145.84,145.76,6.1636]
[1723526707399,6.8571,145.84,145.77,0.12549]
[1723526708476,6.8574,145.83,145.77,0.12549]
[1723526710504,6.8574,145.83,145.77,1.49729738]
[1723526711507,6.8577,145.82,145.76,6.1636]
[1723526711719,6.8583,145.81,145.76,6.1636]
[1723526711887,6.8571,145.84,145.76,6.1636]
[1723526712080,6.8573,145.83,145.76,6.1636]
[1723526713803,6.8558,145.87,145.78,0.12549]
[1723526714011,6.8558,145.87,145.78,0.37647]
[1723526714012,20.0,145.86,145.78,0.37647]
[1723526714297,20.0,145.86,145.79,0.12549]
[1723526714504,26.856,145.86,145.79,0.25098]
[1723526714711,26.856,145.86,145.8,0.25098]
[1723526714887,31.67,145.88,145.8,0.25098]
[1723526714888,6.8554,145.87,145.8,0.25098]
[1723526717109,6.856,145.86,145.8,0.25098]
[1723526717487,38.5254,145.88,145.8,0.25098]
[1723526717687,26.8554,145.87,145.81,0.12549]
[1723526717900,1.65626005,145.86,145.81,0.12549]
[1723526718319,26.8554,145.87,145.8,0.25098]
[1723526718728,26.8554,145.87,145.81,0.12549]
[1723526719406,7.6838583,145.91,145.83,0.12549]
[1723526719649,6.8541,145.9,145.83,0.50196]
[1723526719918,6.8545,145.89,145.83,0.50196]
[1723526720125,6.855,145.88,145.83,0.12549]
[1723526720324,6.855,145.88,145.82,22.1146]
[1723526720526,6.8545,145.89,145.82,22.1146]
[1723526721745,6.8545,145.89,145.83,0.50196]
[1723526722229,38.5241,145.9,145.83,0.50196]
[1723526723517,38.5241,145.9,145.83,45.50196]
[1723526723827,38.5241,145.9,145.83,0.50196]
[1723526724416,38.5241,145.9,145.83,45.50196]
[1723526724827,38.5241,145.9,145.83,0.50196]
[1723526725612,6.8545,145.89,145.83,0.12549]
[1723526726430,6.855,145.88,145.82,22.1146]
[1723526728003,19.515,145.88,145.82,22.1146]
[1723526728207,12.66,145.88,145.82,22.1146]
[1723526729264,12.66,145.86,145.78,22.4647]
[1723526729434,6.8567,145.85,145.78,22.4647]
[1723526729641,12.66,145.84,145.78,22.4647]
[1723526730445,19.5169,145.84,145.78,22.4647]
[1723526730637,12.66,145.84,145.78,22.4647]
[1723526730819,12.66,145.84,145.79,1.3717914]
[1723526731137,12.66,145.86,145.8,1.49712812]
[1723526731319,12.66,145.86,145.8,0.25098]
[1723526731513,12.66,145.86,145.8,1.62246179]
[1723526731715,12.66,145.86,145.81,0.12549]
[1723526731937,12.66,145.88,145.82,0.12549]
[1723526732238,19.5149,145.88,145.82,1.62224448]
[1723526732422,19.5149,145.88,145.82,0.25098]
[1723526733841,12.66,145.88,145.82,0.25098]
[1723526734052,12.66,145.88,145.83,6.0951]
[1723526734254,19.5141,145.9,145.84,0.12549]
[1723526734431,19.5141,145.9,145.84,15.69769]
[1723526735037,6.8545,145.89,145.84,15.69769]
[1723526735239,6.8545,145.89,145.84,15.5722]
[1723526735442,12.66,145.88,145.83,6.0951]
[1723526735740,3.5592732,145.91,145.83,6.0951]
[1723526735741,19.5159,145.86,145.83,6.0951]
[1723526736140,12.66,145.88,145.83,6.0951]
[1723526736835,19.5151,145.88,145.83,6.0951]
[1723526737329,12.66,145.88,145.83,6.0951]
[1723526737945,12.66,145.9,145.83,6.0951]
[1723526738955,12.66,145.9,145.84,0.12549]
[1723526739320,19.5141,145.9,145.84,0.12549]
[1723526739634,19.5141,145.9,145.84,0.25098]
[1723526739831,19.5141,145.9,145.84,0.12549]
[1723526740141,12.66,145.9,145.84,0.25098]
[1723526740337,19.5141,145.9,145.84,0.25098]
[1723526740546,19.5153,145.88,145.84,0.12549]
[1723526740852,19.5153,145.88,145.83,6.0951]
[1723526741035,12.66,145.88,145.83,6.0951]
[1723526741345,12.66,145.9,145.84,1.62213454]
[1723526741535,12.66,145.9,145.84,0.25098]
[1723526741851,12.66,145.9,145.84,1.62210958]
[1723526742624,19.5141,145.9,145.84,0.25098]
[1723526745440,19.5141,145.9,145.84,1.62210415]
[1723526745959,19.5141,145.9,145.84,0.25098]
[1723526747366,0.8299583,145.91,145.84,0.25098]
[1723526747566,0.8299583,145.91,145.85,15.51278]
[1723526747857,0.8299583,145.91,145.86,0.12549]
[1723526748073,0.8299583,145.91,145.86,1.49646906]
[1723526748239,0.8299583,145.91,145.87,0.12549]
[1723526748441,0.8299583,145.91,145.88,6.5325]
[1723526750057,7.6835583,145.91,145.88,6.5325]
[1723526750861,20.3435583,145.91,145.88,6.5325]
[1723526751168,13.4899583,145.91,145.88,6.5325]
[1723526751477,13.4899583,145.91,145.85,21.6187]
[1723526752463,20.3435583,145.91,145.85,21.6187]
[1723526755471,13.4899583,145.91,145.85,21.6187]
[1723526755689,12.66,145.89,145.85,6.3569]
[1723526756245,6.854,145.9,145.85,6.3569]
[1723526757955,13.4899583,145.91,145.85,6.3569]
[1723526757956,0.8299583,145.91,145.85,6.3569]
[1723526758270,7.6835583,145.91,145.85,6.3569]
[1723526758766,0.8299583,145.91,145.86,15.682]
[1723526759070,0.8299583,145.91,145.86,17.05297951]
[1723526759279,0.8299583,145.91,145.86,15.682]
[1723526760504,0.8299583,145.91,145.87,0.25098]
[1723526761454,0.8299583,145.91,145.87,1.62176536]
[1723526761649,0.8299583,145.91,145.88,0.12549]
[1723526761881,0.8299583,145.91,145.88,0.25098]
[1723526762073,0.8299583,145.91,145.89,0.12549]
[1723526762374,0.8299583,145.91,145.89,1.62166465]
[1723526762583,0.8299583,145.91,145.9,6.39059]
[1723526762788,0.8299583,145.91,145.9,6.76706]
[1723526763197,0.8299583,145.91,145.9,6.64157]
[1723526763700,0.8299583,145.91,145.9,6.76706]
[1723526764798,0.8299583,145.91,145.9,22.29416]
[1723526764969,19.5099,145.99,145.9,87.29416]
[1723526765283,12.66,146.0,145.91,45.50196]
[1723526765771,6.8502,145.98,145.91,0.50196]
[1723526765978,12.66,145.98,145.91,0.50196]
[1723526766196,19.5102,145.98,145.91,0.50196]
[1723526766369,12.66,145.98,145.91,45.50196]
[1723526767899,19.5103,145.98,145.91,0.50196]
[1723526768065,12.66,145.98,145.91,0.50196]
[1723526768265,19.5106,145.98,145.91,0.50196]
[1723526769585,19.5103,145.98,145.9,21.7922]
[1723526769790,19.5103,145.98,145.91,0.12549]
[1723526770169,6.8507,145.97,145.91,0.12549]
[1723526770675,19.5099,145.99,145.92,0.12549]
[1723526770871,19.5099,145.99,145.92,0.37647]
[1723526770872,19.5097,145.99,145.92,0.37647]
[1723526771094,6.8504,145.98,145.92,0.37647]
[1723526771889,6.8504,145.98,145.92,0.25098]
[1723526772189,1.65626005,146.01,145.92,0.25098]
[1723526772190,19.5107,145.97,145.92,0.12549]
[1723526772400,19.5107,145.97,145.91,0.25098]
[1723526772762,12.66,145.97,145.91,0.25098]
[1723526773370,12.66,145.97,145.92,0.12549]
[1723526773683,12.66,145.97,145.92,0.25098]
[1723526773991,12.66,145.97,145.92,0.12549]
[1723526774194,2.68694126,146.03,145.93,0.12549]
[1723526774384,2.68694126,146.03,145.93,0.37647]
[1723526774385,12.66,146.0,145.93,0.37647]
[1723526775089,12.66,146.0,145.94,6.5119]
[1723526778771,19.5093,146.0,145.94,6.5119]
[1723526779095,12.66,146.0,145.94,6.5119]
[1723526782871,12.66,145.98,145.94,6.5119]
[1723526783273,19.5097,146.0,145.94,6.5119]
[1723526783672,12.66,146.0,145.94,6.5119]
[1723526785400,19.5094,146.0,145.94,6.5119]
[1723526785777,12.66,146.0,145.94,6.5119]
[1723526787907,8.50616005,145.99,145.94,6.5119]
[1723526788209,1.65626005,145.98,145.94,6.5119]
[1723526788376,19.5104,145.98,145.94,6.5119]
[1723526788782,2.67679709,146.04,145.95,1.37042752]
[1723526789011,12.66,146.02,145.95,1.37042752]
[1723526789181,20.0,146.01,145.95,1.37042752]
[1723526789612,19.5084,146.02,145.95,1.49564078]
[1723526789979,19.5084,146.02,145.95,17.34154078]
[1723526791610,6.8489,146.01,145.95,17.34154078]
[1723526791815,6.8489,146.01,145.95,15.97139]
[1723526792011,6.8489,146.01,145.96,1.37012686]
[1723526792337,19.5084,146.02,145.96,1.37012686]
[1723526793317,6.849,146.01,145.96,1.37012686]
[1723526797498,12.66,146.02,145.96,1.37012686]
[1723526797712,12.66,146.02,145.97,0.12549]
[1723526797919,19.5085,146.02,145.97,0.25098]
[1723526798330,6.8489,146.01,145.97,0.12549]
[1723526798527,19.5083,146.02,145.96,1.62096199]
[1723526798727,19.5083,146.02,145.97,0.12549]
[1723526799424,19.5083,146.02,145.97,0.25098]
[1723526799594,6.8483,146.02,145.97,0.25098]
[1723526801238,0.8299583,146.05,145.98,0.12549]
[1723526801538,6.8475,146.04,145.98,1.74627204]
[1723526801830,6.8475,146.04,145.99,6.0785]
[1723526803126,6.8479,146.03,145.99,6.0785]
[1723526804000,13.4899583,146.05,145.99,6.0785]
[1723526804200,12.66,146.03,145.99,6.0785]
[1723526804618,6.8484,146.02,145.99,6.0785]
[1723526804821,6.848,146.03,145.99,6.0785]
[1723526805624,0.8299583,146.05,146.01,0.12549]
[1723526805939,0.8299583,146.05,146.01,0.25098]
[1723526806417,0.8299583,146.05,146.02,0.12549]
[1723526806607,0.8299583,146.05,146.02,0.25098]
[1723526807427,0.8299583,146.05,146.02,0.12549]
[1723526807605,0.8299583,146.05,146.02,0.25098]
[1723526812733,0.8299583,146.05,146.03,0.12549]
[1723526812933,0.8299583,146.05,146.03,0.37647]
[1723526813133,0.8299583,146.05,146.04,6.53598]
[1723526813445,0.8299583,146.05,146.04,6.78696]
[1723526813847,17.1086,146.13,146.04,22.65446]
[1723526814055,6.8445,146.11,146.05,1.49472271]
[1723526814337,19.5045,146.11,146.05,1.49472271]
[1723526814542,6.8447,146.1,146.05,1.49472271]
[1723526815452,6.8447,146.1,146.06,0.37647]
[1723526815633,6.8447,146.1,146.07,0.12549]
[1723526815831,6.8447,146.1,146.06,0.25098]
[1723526817659,6.8452,146.09,146.05,0.25098]
[1723526818854,6.8446,146.1,146.05,1.62013607]
[1723526819464,6.8442,146.11,146.06,0.25098]
[1723526819759,6.8437,146.12,146.07,0.37647]
[1723526819943,6.8437,146.12,146.07,0.25098]
[1723526820546,6.8442,146.11,146.07,0.25098]
[1723526821149,6.8449,146.1,146.06,0.25098]
[1723526821372,6.8449,146.1,146.07,0.12549]
[1723526821551,6.8451,146.09,146.04,22.1525]
[1723526822466,6.8456,146.08,146.04,22.1525]
[1723526822854,6.8446,146.1,146.04,22.1525]
[1723526823045,6.844,146.12,146.04,34.8125]
[1723526823464,12.66,146.13,146.04,22.1525]
[1723526823663,6.8447,146.1,146.05,0.25098]
[1723526823836,6.8447,146.1,146.06,0.25098]
[1723526824237,6.8442,146.11,146.06,0.25098]
[1723526824860,6.8442,146.11,146.06,0.12549]
[1723526825066,6.8442,146.11,146.06,0.25098]
[1723526825232,6.8447,146.1,146.06,0.12549]
[1723526825434,32.66,146.12,146.05,0.25098]
[1723526825645,6.8445,146.11,146.06,0.12549]
[1723526826034,6.8445,146.11,146.06,1.49452747]
[1723526826449,26.8437,146.12,146.06,1.49452747]
[1723526826893,12.66,146.13,146.06,0.25098]
[1723526827045,20.0,146.12,146.06,0.12549]
[1723526827369,6.8443,146.11,146.06,0.12549]
[1723526827671,6.8443,146.11,146.05,1.49453391]
[1723526827962,6.8442,146.11,146.05,1.49453391]
[1723526828173,6.8442,146.11,146.06,0.12549]
[1723526828564,6.8451,146.09,146.04,22.27799]
[1723526828737,6.8447,146.1,146.05,0.12549]
[1723526829750,19.5042,146.11,146.05,1.49465969]
[1723526830065,6.8442,146.11,146.05,1.49465969]
[1723526831585,19.5042,146.11,146.05,1.49465969]
[1723526832692,6.8446,146.1,146.05,0.12549]
[1723526833172,6.8446,146.1,146.04,22.1525]
[1723526833578,6.8453,146.09,146.04,22.1525]
[1723526833988,6.8447,146.1,146.04,22.1525]
[1723526834573,12.66,146.09,146.04,22.1525]
[1723526834890,17.1094,146.12,146.04,22.1525]
[1723526834891,12.66,146.07,146.04,22.1525]
[1723526838298,12.66,146.07,146.04,6.285]
[1723526838897,12.66,146.07,146.01,6.532]
[1723526839192,8.50186005,146.08,145.91,1.19220014]
[1723526839193,12.66,146.02,145.93,6.532]
[1723526839777,19.5084,146.02,145.93,6.532]
[1723526841296,19.5084,146.02,145.94,45.12549]
[1723526841668,19.5084,146.02,145.95,0.37647]
[1723526841868,19.5084,146.02,145.96,0.25098]
[1723526842580,6.8488,146.01,145.96,0.12549]
[1723526842905,19.5093,146.0,145.95,0.25098]
[1723526843264,19.5093,146.0,145.94,45.0]
[1723526843568,12.66,146.0,145.95,1.37005522]
[1723526844102,12.66,146.0,145.94,45.0]
[1723526844468,12.66,146.0,145.93,6.532]
[1723526844675,12.66,146.0,145.94,1.37014135]
[1723526844873,19.5093,146.0,145.94,1.37014135]
[1723526845577,12.66,146.0,145.94,1.37014135]
[1723526845789,19.5083,146.02,145.95,0.25098]
[1723526846091,12.66,146.02,145.96,0.25098]
[1723526846290,6.8489,146.01,145.97,0.12549]
[1723526847202,6.8489,146.01,145.96,0.25098]
[1723526847770,6.8493,146.0,145.96,0.25098]
[1723526847977,19.5093,146.0,145.96,0.25098]
[1723526849202,19.5093,146.0,145.95,0.12549]
[1723526849494,6.85,145.99,145.95,0.12549]
[1723526849703,6.85,145.99,145.94,0.12549]
[1723526849876,6.85,145.99,145.93,6.532]
[1723526850785,6.85,145.99,145.94,0.12549]
[1723526851101,6.85,145.99,145.94,0.25098]
[1723526852194,19.5094,146.0,145.94,0.25098]
[1723526852876,6.8499,145.99,145.93,6.65749]
[1723526853077,6.8499,145.99,145.94,0.12549]
[1723526853302,19.5094,146.0,145.94,0.25098]
[1723526853870,6.8498,145.99,145.94,0.25098]
[1723526854297,6.8498,145.99,145.94,0.12549]
[1723526854500,19.5102,145.98,145.93,6.532]
[1723526855205,19.5102,145.98,145.92,15.78627]
[1723526855500,19.5102,145.98,145.93,0.50196]
[1723526855801,1.65626005,145.97,145.93,0.50196]
[1723526856005,19.5102,145.98,145.93,0.50196]
[1723526856312,19.5102,145.98,145.93,0.37647]
[1723526856477,19.5102,145.98,145.93,0.12549]
[1723526856803,19.5102,145.98,145.92,15.4098]
[1723526857711,12.66,145.96,145.92,15.4098]
[1723526858275,12.66,145.96,145.91,0.25098]
[1723526858891,19.5102,145.98,145.92,0.25098]
[1723526859092,6.8509,145.97,145.91,0.25098]
[1723526859310,12.66,145.94,145.9,6.541]
[1723526859486,12.66,145.94,145.89,0.25098]
[1723526859681,1.65626005,145.93,145.89,0.12549]
[1723526859890,1.65626005,145.93,145.88,15.3315]
[1723526860484,12.66,145.92,145.87,6.6619]
[1723526860710,12.66,145.92,145.84,16.2856]
[1723526860915,12.66,145.9,145.84,16.2856]
[1723526861214,12.66,145.88,145.83,6.2921]
[1723526862198,16.6468,145.94,145.83,6.2921]
[1723526862395,16.6468,145.94,145.84,1.37110684]
[1723526862617,12.66,145.91,145.83,18.9521]
[1723526863201,12.66,145.91,145.84,0.25098]
[1723526863404,12.66,145.91,145.85,0.25098]
[1723526863719,19.5126,145.93,145.86,15.44608]
[1723526863939,19.5126,145.93,145.87,1.49638543]
[1723526864439,19.5126,145.93,145.87,0.12549]
[1723526864819,15.7235,145.98,145.87,1.49640344]
[1723526864988,12.66,145.95,145.88,0.37647]
[1723526865193,20.0,145.94,145.89,0.12549]
[1723526865410,26.8523,145.94,145.89,0.12549]
[1723526865593,12.66,145.93,145.89,0.12549]
[1723526865789,12.66,145.93,145.87,0.12549]
[1723526865994,12.66,145.93,145.87,1.87279351]
[1723526866222,12.66,145.93,145.87,45.50196]
[1723526867120,26.8522,145.94,145.87,45.50196]
[1723526867324,20.0,145.94,145.88,1.37069914]
[1723526867527,20.0,145.94,145.89,6.51816]
[1723526867696,20.0,145.94,145.9,1.37064975]
[1723526868008,26.8523,145.94,145.89,6.14169]
[1723526868422,26.8523,145.94,145.89,6.0162]
[1723526870027,26.8523,145.94,145.9,0.12549]
[1723526870540,6.8523,145.94,145.9,0.12549]
[1723526871045,6.8526,145.93,145.89,6.0162]
[1723526871821,6.8526,145.93,145.86,22.85916785]
[1723526871822,6.853,145.92,145.86,22.85916785]
[1723526872010,19.5126,145.93,145.86,22.85916785]
[1723526872539,12.66,145.93,145.86,22.85916785]
[1723526872741,19.5126,145.93,145.86,21.4884]
[1723526873338,19.512,145.95,145.88,0.12549]
[1723526873523,19.512,145.95,145.88,1.49603616]
[1723526873713,19.512,145.95,145.9,0.12549]
[1723526873912,19.512,145.95,145.9,1.49601708]
[1723526874233,19.512,145.95,145.91,0.25098]
[1723526874547,12.66,145.95,145.91,0.12549]
[1723526874713,12.66,145.95,145.9,1.62152137]
[1723526874914,12.66,145.95,145.91,0.12549]
[1723526877238,19.5116,145.95,145.91,0.12549]
[1723526878035,12.66,145.95,145.91,0.12549]
[1723526878338,12.66,145.95,145.92,0.12549]
[1723526878816,12.66,145.95,145.92,0.25098]
[1723526879013,12.66,145.96,145.92,0.25098]
[1723526879321,6.8501,145.99,145.94,0.12549]
[1723526879520,6.8501,145.99,145.94,1.62117369]
[1723526879521,19.5101,145.99,145.94,1.62117369]
[1723526879731,19.5101,145.99,145.95,0.12549]
[1723526879937,12.66,145.99,145.95,0.12549]
[1723526880112,12.66,145.97,145.95,0.12549]
[1723526880312,19.5109,145.97,145.93,16.00929]
[1723526880610,19.5109,145.97,145.93,15.8838]
[1723526883641,19.5117,145.95,145.91,6.1211]
[1723526883824,12.66,145.95,145.91,6.1211]
[1723526884513,19.5117,145.95,145.91,6.1211]
[1723526885513,12.66,145.95,145.91,6.1211]
[1723526886974,72.85065402,146.02,145.91,6.1211]
[1723526886975,6.8507,145.97,145.91,6.1211]
[1723526887115,12.66,145.97,145.92,0.12549]
[1723526887318,12.66,145.97,145.92,45.50196]
[1723526888738,19.5108,145.97,145.92,0.37647]
[1723526889440,19.5108,145.97,145.92,1.74688837]
[1723526889836,12.66,145.97,145.92,1.74688837]
[1723526892429,12.66,145.97,145.93,0.12549]
[1723526892734,12.66,145.97,145.93,1.74672474]
[1723526892929,12.66,145.97,145.94,0.12549]
[1723526893131,12.66,145.97,145.94,0.25098]
[1723526893621,12.66,145.97,145.94,0.12549]
[1723526893826,19.5108,145.97,145.91,6.1211]
[1723526894034,19.5108,145.97,145.92,0.37647]
[1723526895349,19.5108,145.97,145.93,0.12549]
[1723526895846,12.66,145.97,145.93,0.12549]
[1723526896048,6.8498,145.99,145.93,0.12549]
[1723526896253,19.5103,145.98,145.93,0.12549]
[1723526896461,6.8508,145.97,145.93,0.12549]
[1723526896756,6.8508,145.97,145.92,1.74683281]
[1723526896757,6.8508,145.97,145.92,1.74690017]
[1723526896957,12.66,145.98,145.93,1.49591722]
[1723526896958,19.5103,145.98,145.93,1.49591722]
[1723526898140,19.5103,145.98,145.93,0.12549]
[1723526898344,12.66,145.98,145.94,0.12549]
[1723526898653,12.66,145.98,145.94,0.25098]
[1723526899732,2.71920296,146.03,145.95,22.007]
[1723526899932,17.1094,146.12,146.03,0.12549]
[1723526899933,6.8437,146.12,146.03,0.12549]
[1723526900149,26.16941588,146.18,146.03,45.50196]
[1723526900150,12.66,146.08,146.03,45.50196]
[1723526900329,12.66,146.08,146.05,0.12549]
[1723526900540,12.66,146.08,146.05,1.8711199]
[1723526901433,12.66,146.08,146.05,0.12549]
[1723526901630,12.66,146.06,146.03,0.12549]
[1723526901826,12.66,146.06,146.03,0.50196]
[1723526902050,12.66,146.06,146.03,0.25098]
[1723526902255,12.66,146.06,146.03,0.12549]
[1723526902635,12.66,146.05,146.03,0.12549]
[1723526902834,12.66,146.05,146.01,0.12549]
[1723526903044,12.66,146.05,146.01,0.50196]
[1723526904332,6.8455,146.09,146.01,0.50196]
[1723526904545,12.66,146.07,146.01,45.50196]
[1723526904748,12.66,146.07,146.01,0.50196]
[1723526905140,12.66,146.05,146.01,0.50196]
[1723526905535,12.66,146.05,146.01,0.25098]
[1723526905754,12.66,146.05,146.01,0.12549]
[1723526905938,12.66,146.05,146.01,1.62063142]
[1723526906141,12.66,146.05,146.01,0.25098]
[1723526907352,12.66,146.05,146.01,0.12549]
[1723526908562,15.7221,146.1,146.02,0.12549]
[1723526908763,12.66,146.05,146.02,0.12549]
[1723526908970,12.66,146.05,146.01,0.25098]
[1723526909156,12.66,146.05,146.01,0.12549]
[1723526912658,12.66,146.05,146.01,1.74609823]
[1723526913062,12.66,146.05,146.02,0.12549]
[1723526913270,12.66,146.05,146.01,0.37647]
[1723526915198,6.846,146.07,145.94,6.1596]
[1723526915199,12.66,146.03,145.94,6.1596]
[1723526915360,19.5091,146.01,145.94,6.1596]
[1723526915991,12.66,146.01,145.95,1.370065]
[1723526916378,12.66,146.01,145.96,1.3700621]
[1723526916577,12.66,146.01,145.94,6.1596]
[1723526917468,12.66,146.01,145.95,45.50196]
[1723526917668,12.66,146.01,145.97,0.12549]
[1723526917974,12.66,146.01,145.97,0.50196]
[1723526918177,12.66,146.01,145.97,0.37647]
[1723526920092,19.5088,146.01,145.94,6.1596]
[1723526920464,12.66,146.01,145.95,1.37008328]
[1723526920660,12.66,146.01,145.96,1.37006762]
[1723526921394,12.66,146.01,145.97,0.25098]
[1723526921592,12.66,146.03,145.97,1.62092927]
[1723526921770,12.66,146.03,145.98,0.12549]
[1723526922094,12.66,146.05,145.98,0.25098]
[1723526922268,19.5063,146.07,146.0,0.12549]
[1723526922484,6.8455,146.08,146.0,1.62048068]
[1723526922800,12.66,146.07,146.01,0.25098]
[1723526923181,12.66,146.07,146.02,0.25098]
[1723526923494,19.506,146.07,146.03,0.12549]
[1723526924005,6.8465,146.06,146.03,0.12549]
[1723526926573,6.8461,146.07,146.03,0.12549]
[1723526926870,19.5061,146.07,146.03,0.12549]
[1723526929191,6.8465,146.06,146.03,0.12549]
[1723526930894,12.66,146.05,146.03,0.12549]
[1723526932789,19.5071,146.05,146.01,0.12549]
[1723526932992,19.5071,146.05,146.0,0.25098]
[1723526933297,19.5071,146.05,146.01,0.25098]
[1723526933687,19.5071,146.05,145.99,15.4457]
[1723526934200,50.64,146.09,145.95,16.4946]
[1723526934201,12.66,146.03,145.95,16.4946]
[1723526934398,12.66,146.03,145.96,20.0]
[1723526934710,12.66,146.03,145.97,1.36980179]
[1723526935797,12.66,146.03,145.98,0.50196]
[1723526936002,12.66,146.03,145.98,21.87172718]
[1723526938094,6.8469,146.05,145.98,21.87172718]
[1723526938301,19.5074,146.04,145.98,21.87172718]
[1723526939283,19.5074,146.04,145.98,20.50196]
[1723526939483,12.66,146.02,145.98,0.12549]
[1723526941016,19.5084,146.02,145.96,0.12549]
[1723526941307,19.5084,146.02,145.96,0.50196]
[1723526941880,12.66,146.0,145.96,0.50196]
[1723526942281,12.66,145.98,145.91,16.2022]
[1723526942675,19.5104,145.98,145.91,16.2022]
[1723526942991,12.66,145.98,145.91,16.2022]
[1723526943907,12.66,145.98,145.92,0.25098]
[1723526944092,12.66,145.98,145.93,0.12549]
[1723526950201,16.5241,146.0,145.93,0.12549]
[1723526950393,29.1841,146.0,145.94,0.12549]
[1723526950597,29.1841,146.0,145.94,0.37647]
[1723526950799,29.1841,146.0,145.95,0.12549]
[1723526951027,29.1841,146.0,145.95,1.74660601]
[1723526951199,29.1841,146.0,145.96,0.12549]
[1723526951523,16.5241,146.0,145.96,0.37647]
[1723526952926,29.1841,146.0,145.96,0.37647]
[1723526953927,29.1841,146.0,145.93,0.12549]
[1723526954217,19.5103,145.98,145.93,0.50196]
[1723526954548,12.66,145.98,145.93,0.50196]
[1723526955097,12.66,145.98,145.93,1.87221019]